bitfinex/quotes_ETHUSD_20220117
["timestamp","ask_amount","ask_price","bid_price","bid_amount"]
[1642396070749,1.08994602,3245.6,3245.5,380.25444301]
[1642396071053,2.08994602,3245.6,3245.5,380.25444301]
[1642396071249,1.08994602,3245.6,3245.5,380.25444301]
[1642396072249,1.08994602,3245.6,3245.5,379.49729857]
[1642396072491,0.78994602,3245.6,3245.5,379.49729857]
[1642396073992,1.38994602,3245.6,3245.5,379.49729857]
[1642396074391,0.78994602,3245.6,3245.5,379.49729857]
[1642396074591,1.08994602,3245.6,3245.5,379.49729857]
[1642396074792,0.78994602,3245.6,3245.5,379.49729857]
[1642396074991,0.78994602,3245.6,3245.5,379.44729857]
[1642396076246,1.08994602,3245.6,3245.5,379.44729857]
[1642396076843,0.78994602,3245.6,3245.5,379.44729857]
[1642396077542,0.78994602,3245.6,3245.5,380.17189365]
[1642396078143,1.08994602,3245.6,3245.5,380.17189365]
[1642396079442,4.08994602,3245.6,3245.5,380.17189365]
[1642396079894,5.08994602,3245.6,3245.5,380.17189365]
[1642396082294,5.08994602,3245.6,3245.5,379.44729857]
[1642396082496,5.38994602,3245.6,3245.5,379.44729857]
[1642396082895,6.38994602,3245.6,3245.5,379.44729857]
[1642396086248,5.38994602,3245.6,3245.5,379.44729857]
[1642396088195,5.23994602,3245.6,3245.5,379.44729857]
[1642396096698,11.9541432,3245.6,3245.5,379.44729857]
[1642396096893,5.23994602,3245.6,3245.5,379.44729857]
[1642396098842,11.91002844,3245.6,3245.5,379.44729857]
[1642396099042,5.23994602,3245.6,3245.5,379.44729857]
[1642396099246,5.23994602,3245.6,3245.5,379.44616172]
[1642396099443,5.23994602,3245.6,3245.5,379.34616172]
[1642396102044,16.71540392,3245.6,3245.5,379.34616172]
[1642396102245,18.14530392,3245.6,3245.5,378.99016172]
[1642396102495,18.02770392,3245.6,3245.5,371.95119048]
[1642396103895,21.52770392,3245.6,3245.5,371.95119048]
[1642396104795,21.45124602,3245.6,3245.5,371.95119048]
[1642396106155,34.50124602,3245.6,3245.5,360.5716676]
[1642396106346,32.47690392,3245.6,3245.5,359.76684629]
[1642396106543,24.94250819,3245.6,3245.5,358.71816184]
[1642396106743,146.89981719,3245.6,3245.5,356.34326011]
[1642396106951,149.28650719,3245.6,3245.5,355.95914401]
[1642396107143,149.95287919,3245.6,3245.5,355.95914401]
[1642396107345,146.18474819,3245.6,3245.5,355.24514401]
[1642396107543,147.81903719,3245.6,3245.5,355.15123844]
[1642396107744,148.80577719,3245.6,3245.5,354.23503553]
[1642396108044,148.80577719,3245.6,3245.5,353.62290091]
[1642396108045,154.55925919,3245.6,3245.5,353.62290091]
[1642396108243,161.80392223,3245.6,3245.5,353.62290091]
[1642396108443,170.61681223,3245.6,3245.5,352.21155453]
[1642396108645,181.39385123,3245.6,3245.5,352.21155453]
[1642396108844,182.16164723,3245.6,3245.5,352.21155453]
[1642396109044,180.72022923,3245.6,3245.5,352.21155453]
[1642396109245,177.55391923,3245.6,3245.5,352.21155453]
[1642396109448,179.61925023,3245.6,3245.5,352.21155453]
[1642396109645,180.03742723,3245.6,3245.5,352.21155453]
[1642396109895,178.14954023,3245.6,3245.5,352.21155453]
[1642396110095,178.30718623,3245.6,3245.5,352.21155453]
[1642396110295,178.29186723,3245.6,3245.5,352.21155453]
[1642396110498,182.41036752,3245.6,3245.5,351.99946967]
[1642396110697,183.05641952,3245.6,3245.5,344.95883202]
[1642396110898,189.18643252,3245.6,3245.5,344.95883202]
[1642396111096,190.21805059,3245.6,3245.5,344.95883202]
[1642396111397,188.5815613,3245.6,3245.5,344.92356667]
[1642396111597,190.4682273,3245.6,3245.5,344.72356667]
[1642396111796,177.1528513,3245.6,3245.5,343.12356667]
[1642396112001,169.5763863,3245.6,3245.5,343.01856667]
[1642396112200,171.1598973,3245.6,3245.5,331.61856667]
[1642396112398,174.5435133,3245.6,3245.5,331.61856667]
[1642396112599,168.5518413,3245.6,3245.5,330.81856667]
[1642396112798,167.4238983,3245.6,3245.5,330.81856667]
[1642396112999,167.7854443,3245.6,3245.5,330.81856667]
[1642396113200,158.7793493,3245.6,3245.5,330.81856667]
[1642396113400,158.7793493,3245.6,3245.5,330.71356667]
[1642396113654,158.7970493,3245.6,3245.5,330.71356667]
[1642396113842,162.5811263,3245.6,3245.5,330.71356667]
[1642396114042,161.4895153,3245.6,3245.5,330.71356667]
[1642396114243,178.0291243,3245.6,3245.5,330.61056667]
[1642396114444,180.0913743,3245.6,3245.5,330.61056667]
[1642396114650,181.0342703,3245.6,3245.5,330.91056667]
[1642396114846,180.5832883,3245.6,3245.5,330.91056667]
[1642396115146,177.2546303,3245.6,3245.5,330.82056667]
[1642396115346,177.7795823,3245.6,3245.5,330.82056667]
[1642396115546,177.2546303,3245.6,3245.5,330.82056667]
[1642396115946,177.7826803,3245.6,3245.5,330.35556667]
[1642396116149,177.6379833,3245.6,3245.5,330.35556667]
[1642396116446,179.1861703,3245.6,3245.5,330.35556667]
[1642396116647,179.1853933,3245.6,3245.5,330.35556667]
[1642396116846,177.3367633,3245.6,3245.5,327.35556667]
[1642396117047,174.3351633,3245.6,3245.5,327.35556667]
[1642396117398,152.4937693,3245.6,3245.5,327.35556667]
[1642396117592,146.3241833,3245.6,3245.5,327.35556667]
[1642396117797,146.3265833,3245.6,3245.5,320.31483689]
[1642396117994,146.3273833,3245.6,3245.5,320.31483689]
[1642396118194,146.3273833,3245.6,3245.5,319.86145924]
[1642396118195,126.8949833,3245.6,3245.5,319.86145924]
[1642396118397,26.80253581,3245.6,3245.5,319.86145924]
[1642396118594,25.6817785,3245.6,3245.5,319.86145924]
[1642396118794,25.5649785,3245.6,3245.5,319.86145924]
[1642396118994,26.5649785,3245.6,3245.5,319.86145924]
[1642396119595,24.14953343,3245.6,3245.5,319.86145924]
[1642396120496,10.27218741,3245.6,3245.5,319.86145924]
[1642396120696,10.27218741,3245.6,3245.5,319.87441967]
[1642396120697,9.4671,3245.6,3245.5,319.87441967]
[1642396121748,9.1623,3245.6,3245.5,319.87441967]
[1642396123547,9.6063,3245.6,3245.5,319.87441967]
[1642396123748,10.6063,3245.6,3245.5,319.87441967]
[1642396124350,34.50342072,3246.0,3245.5,319.87441967]
[1642396124351,0.123304,3246.0,3245.5,319.87441967]
[1642396124551,0.444,3246.3,3246.1,0.00991673]
[1642396124749,0.444,3246.3,3246.0,36.6088]
[1642396124995,0.08949826,3246.2,3246.0,36.6088]
[1642396125195,0.00284212,3246.2,3246.1,36.4301175]
[1642396125392,0.444,3246.3,3246.2,35.48276426]
[1642396125792,0.44741054,3246.3,3246.2,35.48276426]
[1642396126194,0.44741054,3246.3,3246.2,1.48276426]
[1642396126393,0.44741054,3246.3,3246.1,0.7801175]
[1642396126893,0.00284212,3246.2,3245.9,0.01281423]
[1642396127296,0.00227369,3246.1,3245.9,0.01281423]
[1642396127494,0.00227369,3246.1,3245.9,1.48635895]
[1642396127701,0.00170527,3246.0,3245.9,1.48635895]
[1642396127895,0.00170527,3246.0,3245.9,19.38635895]
[1642396128094,0.00170527,3246.0,3245.9,0.67678465]
[1642396128497,0.30170527,3246.0,3245.9,0.67678465]
[1642396128744,0.30170527,3246.0,3245.9,11.37678465]
[1642396129443,3.30170527,3246.0,3245.9,11.37678465]
[1642396129642,4.30170527,3246.0,3245.9,11.37678465]
[1642396129844,4.30170527,3246.0,3245.9,19.17678465]
[1642396130644,4.30170527,3246.0,3245.9,11.37678465]
[1642396130843,4.30170527,3246.0,3245.9,32.97678465]
[1642396131645,0.444,3246.1,3245.9,32.97678465]
[1642396131844,0.444,3246.5,3245.9,32.97678465]
[1642396132498,0.444,3246.5,3246.0,0.00544129]
[1642396132704,0.444,3246.5,3245.9,32.97678465]
[1642396132705,0.00397896,3246.7,3245.9,32.97678465]
[1642396132902,0.00397896,3246.7,3246.6,30.85192013]
[1642396133098,0.444,3246.9,3246.6,31.58627557]
[1642396133498,0.00454739,3246.8,3246.6,31.58627557]
[1642396133800,0.00397896,3246.7,3246.6,31.58627557]
[1642396136644,0.00397896,3246.7,3246.6,14.33627557]
[1642396137643,0.00397896,3246.7,3246.6,23.73627557]
[1642396138646,0.00397896,3246.7,3246.6,32.28627557]
[1642396138846,0.00397896,3246.7,3246.6,23.73627557]
[1642396139647,0.00397896,3246.7,3246.6,29.68627557]
[1642396140099,3.00397896,3246.7,3246.6,23.73627557]
[1642396140501,4.00397896,3246.7,3246.6,23.73627557]
[1642396140707,3.00397896,3246.7,3246.6,23.73627557]
[1642396140898,4.00397896,3246.7,3246.6,23.73627557]
[1642396141299,0.1528168,3246.7,3246.6,37.63627557]
[1642396141501,0.45930625,3247.4,3246.7,35.6]
[1642396141801,0.00113685,3246.9,3246.7,35.6]
[1642396142902,0.00113685,3246.9,3246.7,35.9]
[1642396143102,0.00113685,3246.9,3246.7,54.1191]
[1642396143503,0.00113685,3246.9,3246.7,53.8191]
[1642396143949,0.00113685,3246.9,3246.7,35.8391]
[1642396144149,0.00113685,3246.9,3246.7,35.6]
[1642396144948,0.00113685,3246.9,3246.7,35.5]
[1642396145752,0.00113685,3246.9,3246.6,0.73435544]
[1642396145753,0.07632516,3246.8,3246.6,0.73435544]
[1642396145957,0.00113685,3246.9,3246.0,10.5238]
[1642396146352,0.00113685,3246.9,3246.1,0.00341054]
[1642396146553,0.444,3246.8,3246.1,0.00341054]
[1642396146753,0.444,3246.8,3246.1,1.37930991]
[1642396146952,0.0545,3246.8,3246.1,8.44605494]
[1642396147158,0.0545,3246.8,3246.4,0.01221429]
[1642396147596,0.0545,3246.8,3246.5,0.00113684]
[1642396147802,0.05898934,3246.7,3246.5,0.00113684]
[1642396148000,0.00113685,3246.9,3246.6,12.29380095]
[1642396148797,0.00113685,3246.9,3246.7,0.01130177]
[1642396148999,0.00113685,3246.9,3246.6,12.29380095]
[1642396149396,0.00113685,3246.9,3246.6,0.59380095]
[1642396149597,0.08665614,3246.8,3246.6,0.59380095]
[1642396149797,0.00113685,3246.9,3246.6,0.59380095]
[1642396150899,0.00113685,3246.9,3246.7,0.01130177]
[1642396151155,0.08665614,3246.8,3246.6,0.59380095]
[1642396151746,3.00113685,3246.9,3246.6,0.59380095]
[1642396152249,0.00113685,3246.9,3246.7,0.01130177]
[1642396152446,1.0,3246.8,3246.6,0.59380095]
[1642396152647,0.00113685,3246.9,3246.6,0.59380095]
[1642396152848,0.56033685,3247.3,3246.6,0.59380095]
[1642396153047,4.8236,3247.2,3246.8,5.25]
[1642396153249,0.00113685,3247.1,3246.7,0.00113684]
[1642396153448,0.06953976,3247.0,3246.7,0.00113684]
[1642396153655,4.8236,3247.0,3246.7,0.00113684]
[1642396153848,4.9396,3247.0,3246.7,0.00113684]
[1642396154048,1.0,3246.9,3246.7,0.00113684]
[1642396154248,1.0,3246.9,3246.1,0.00454739]
[1642396154894,1.0,3246.9,3246.6,0.72047739]
[1642396155294,1.0,3246.9,3246.7,0.00113685]
[1642396155500,4.8236,3246.8,3246.7,0.00113685]
[1642396155896,5.8236,3246.8,3246.1,0.00454739]
[1642396156201,5.8236,3246.8,3246.1,6.73416488]
[1642396156202,4.8236,3246.8,3246.1,6.73416488]
[1642396156396,0.07239353,3246.6,3246.1,0.00454739]
[1642396156596,1.0,3246.7,3246.4,0.75390576]
[1642396156797,1.0,3246.7,3246.1,0.00454739]
[1642396156999,1.0,3246.7,3246.5,0.00227369]
[1642396157197,4.8236,3246.6,3246.1,0.00454739]
[1642396157801,1.0766686,3246.5,3246.1,0.00454739]
[1642396158122,1.444,3246.5,3246.1,0.00454739]
[1642396158657,4.8236,3246.4,3246.1,0.00454739]
[1642396158851,0.444,3246.3,3246.1,0.00454739]
[1642396159048,4.8236,3246.2,3246.1,0.00454739]
[1642396159248,5.2676,3246.2,3246.1,0.00454739]
[1642396159448,6.5676,3246.2,3246.1,0.00454739]
[1642396159848,6.5676,3246.2,3245.8,0.01099289]
[1642396160047,6.5676,3246.2,3245.5,320.5419295]
[1642396160048,0.08665614,3246.0,3245.6,0.0073895]
[1642396160249,0.444,3246.0,3245.9,7.80568423]
[1642396160447,0.444,3246.0,3245.9,7.8]
[1642396160647,0.444,3246.0,3245.9,0.00568423]
[1642396161048,0.444,3246.0,3245.6,0.0073895]
[1642396161452,0.444,3246.0,3245.6,6.7108229]
[1642396161648,0.444,3246.0,3245.7,0.01130177]
[1642396161848,0.444,3246.0,3245.7,0.00682108]
[1642396162048,0.444,3246.0,3245.8,0.00625266]
[1642396162249,0.444,3246.0,3245.7,0.00682108]
[1642396162493,0.07792908,3245.9,3245.7,0.00682108]
[1642396162694,0.444,3245.9,3245.7,0.00682108]
[1642396164696,0.04917657,3245.8,3245.6,0.0073895]
[1642396164898,0.444,3245.9,3245.7,25.91130177]
[1642396165096,0.444,3245.9,3245.7,25.9]
[1642396165297,0.444,3245.9,3245.6,6.61348302]
[1642396165298,0.444,3245.9,3245.8,22.25625266]
[1642396165898,0.444,3245.9,3245.8,0.00625266]
[1642396166345,0.444,3245.9,3245.6,0.0073895]
[1642396166546,0.08540153,3245.8,3245.6,0.0073895]
[1642396166750,0.444,3245.9,3245.6,0.0073895]
[1642396166751,0.444,3245.9,3245.7,19.66130177]
[1642396167045,0.444,3245.9,3245.8,15.35625266]
[1642396170397,0.444,3245.9,3245.8,21.35625266]
[1642396171095,0.744,3245.9,3245.8,21.35625266]
[1642396171501,0.744,3245.9,3245.8,15.35625266]
[1642396171797,0.744,3245.9,3245.8,0.00625266]
[1642396172198,0.744,3245.9,3245.6,0.0073895]
[1642396172999,0.744,3245.9,3245.7,0.00484399]
[1642396173406,0.744,3245.9,3245.8,9.05625266]
[1642396173843,0.08665614,3245.8,3245.5,319.86145924]
[1642396174043,0.444,3245.8,3245.6,6.55666388]
[1642396174244,0.444,3245.8,3245.6,6.55780072]
[1642396174443,0.51864296,3245.8,3245.6,0.00113684]
[1642396174646,0.444,3245.8,3245.6,0.00113684]
[1642396174844,0.444,3245.8,3245.6,0.01243861]
[1642396175145,0.444,3245.8,3245.6,0.70353585]
[1642396175343,0.444,3245.8,3245.6,0.00113684]
[1642396175545,0.08450696,3245.7,3245.6,0.00113684]
[1642396175743,0.444,3245.8,3245.6,0.00113684]
[1642396175943,0.63397475,3245.7,3245.6,0.00113684]
[1642396176143,0.56,3245.7,3245.6,0.00113684]
[1642396176445,0.56,3245.7,3245.6,4.70113684]
[1642396176944,0.444,3245.8,3245.6,4.70113684]
[1642396177796,0.56,3245.7,3245.6,4.70113684]
[1642396178095,0.444,3245.8,3245.6,4.70113684]
[1642396178295,0.56,3245.7,3245.6,4.70113684]
[1642396178496,0.744,3245.8,3245.6,4.70113684]
[1642396178694,0.56,3245.7,3245.6,4.70113684]
[1642396179096,0.744,3245.8,3245.6,4.70113684]
[1642396179497,0.56,3245.7,3245.6,4.70113684]
[1642396179898,0.444,3245.8,3245.6,4.70113684]
[1642396186096,0.444,3245.8,3245.6,11.2096579]
[1642396186298,0.444,3245.8,3245.7,23.20331976]
[1642396186900,0.3,3245.9,3245.7,23.97308332]
[1642396187109,0.3,3245.9,3245.8,39.20725112]
[1642396187299,0.3,3245.9,3245.8,31.21]
[1642396188199,0.3,3245.9,3245.8,35.51]
[1642396188653,4.8236,3246.2,3245.9,31.55]
[1642396189048,0.00170527,3246.1,3245.9,31.55]
[1642396189349,4.8236,3246.2,3246.0,42.32073632]
[1642396189556,4.7736,3246.2,3246.0,35.5]
[1642396189749,0.00170527,3246.1,3246.0,35.5]
[1642396191149,0.30170527,3246.1,3246.0,35.5]
[1642396191349,0.30170527,3246.1,3245.7,1.91519806]
[1642396191551,0.07198099,3246.0,3245.7,1.91519806]
[1642396191751,0.07311784,3246.0,3245.7,1.91519806]
[1642396191951,0.07311784,3246.0,3245.6,0.00113684]
[1642396192400,0.00113685,3246.0,3245.7,0.00708305]
[1642396192601,0.00113685,3246.0,3245.6,0.00113684]
[1642396193603,0.07705472,3245.9,3245.6,0.00113684]
[1642396193806,5.2176,3245.8,3245.6,0.00113684]
[1642396194203,1.0,3245.7,3245.6,0.00113684]
[1642396194505,1.56,3245.7,3245.6,0.00113684]
[1642396195003,1.56,3245.7,3245.6,14.60113684]
[1642396195205,1.0,3245.7,3245.6,14.60113684]
[1642396195904,1.56,3245.7,3245.6,14.60113684]
[1642396196153,1.0,3245.7,3245.6,14.60113684]
[1642396196547,1.56,3245.7,3245.6,14.60113684]
[1642396197346,1.0,3245.7,3245.6,14.60113684]
[1642396197549,1.56,3245.7,3245.6,14.60113684]
[1642396197748,1.0,3245.7,3245.6,14.60113684]
[1642396198549,0.9,3245.7,3245.6,14.60113684]
[1642396200901,0.99551405,3245.7,3245.6,30.55113684]
[1642396201306,0.09551405,3245.7,3245.6,30.55113684]
[1642396202105,0.09551405,3245.7,3245.6,31.2826009]
[1642396202904,0.09551405,3245.7,3245.6,36.2326009]
[1642396203107,0.09551405,3245.7,3245.6,31.2826009]
[1642396204150,0.09551405,3245.7,3245.6,31.28146406]
[1642396204750,4.7736,3245.8,3245.6,31.28146406]
[1642396204751,4.7736,3245.8,3245.7,35.5]
[1642396205049,0.00113685,3246.0,3245.7,35.5]
[1642396205249,0.00113685,3246.0,3245.8,7.36079084]
[1642396205447,0.00113685,3246.0,3245.8,11.06539084]
[1642396205655,0.00113685,3246.0,3245.9,42.13622859]
[1642396206452,0.00113685,3246.0,3245.9,35.5]
[1642396208701,0.00113685,3246.0,3245.9,53.78]
[1642396208898,3.685e-05,3246.0,3245.9,53.78]
[1642396209099,3.685e-05,3246.0,3245.9,54.50248145]
[1642396210501,3.685e-05,3246.0,3245.9,53.79208145]
[1642396210701,3.685e-05,3246.0,3245.9,54.79208145]
[1642396211951,0.05549481,3247.3,3246.0,35.5]
[1642396212153,6.1602,3247.2,3246.6,0.58524031]
[1642396212355,6.16702108,3247.2,3246.2,1.46148152]
[1642396212552,0.1488,3247.1,3246.3,6.79219451]
[1642396212752,6.1602,3247.0,3246.3,18.28]
[1642396212950,6.16588423,3247.0,3246.3,18.28]
[1642396213152,0.14271581,3246.9,3246.3,25.00339733]
[1642396213353,0.14271581,3246.9,3246.6,0.01291764]
[1642396213354,6.1602,3246.8,3246.6,0.01291764]
[1642396213556,6.16474739,3246.8,3246.6,7.20174218]
[1642396213752,6.16474739,3246.8,3246.6,0.01291764]
[1642396213753,0.11997896,3246.7,3246.6,0.01291764]
[1642396213953,6.16417896,3246.7,3246.6,35.46291764]
[1642396214452,6.16417896,3246.7,3246.6,54.19344872]
[1642396218001,6.16417896,3246.7,3246.6,53.44291764]
[1642396219448,6.16417896,3246.7,3246.6,54.14541407]
[1642396219848,6.16417896,3246.7,3246.6,0.31291764]
[1642396220052,0.08665614,3246.6,3246.1,1.1435]
[1642396220249,0.03867915,3246.6,3245.9,1.5400505]
[1642396220450,0.07636581,3246.4,3245.8,15.8785686]
[1642396220648,0.00284212,3246.5,3245.8,15.8785686]
[1642396220851,0.00170527,3246.3,3246.0,5.78714796]
[1642396221051,0.00227369,3246.4,3246.0,5.78714796]
[1642396221250,0.00113685,3246.2,3246.0,5.78714796]
[1642396221454,0.00170527,3246.3,3246.1,45.13]
[1642396221651,0.07696588,3246.6,3246.1,27.15]
[1642396221850,0.00113685,3246.2,3246.1,27.15]
[1642396222051,0.00284212,3246.5,3246.1,27.75]
[1642396222251,6.1602,3246.7,3246.2,0.01130177]
[1642396222499,6.1602,3246.7,3246.2,17.98]
[1642396222703,0.00341054,3246.6,3246.3,0.01130177]
[1642396222903,0.00341054,3246.6,3246.2,17.98]
[1642396223100,0.04733956,3246.4,3246.3,54.83245442]
[1642396223302,0.00284212,3246.5,3246.3,54.83245442]
[1642396223500,6.1602,3246.7,3246.3,55.13245442]
[1642396223501,0.00227369,3246.4,3246.3,55.13245442]
[1642396223905,0.00227369,3246.4,3246.3,55.71546899]
[1642396224303,0.00227369,3246.4,3246.3,37.73546899]
[1642396225101,0.00227369,3246.4,3246.3,55.71546899]
[1642396225905,0.00227369,3246.4,3246.3,56.02822822]
[1642396227044,0.00227369,3246.4,3246.3,56.01546899]
[1642396228847,6.11247369,3246.7,3246.4,32.8]
[1642396229047,6.11247369,3246.7,3246.0,5.0909]
[1642396229256,0.08779299,3246.6,3246.0,5.0909]
[1642396229445,0.00113685,3246.6,3246.1,0.00170527]
[1642396229645,0.04660853,3246.5,3246.1,0.00170527]
[1642396229900,0.00113685,3246.6,3246.1,0.00170527]
[1642396230496,0.00113685,3246.6,3246.2,0.01130177]
[1642396230697,0.00113685,3246.6,3246.1,0.30170527]
[1642396230895,0.00113685,3246.6,3246.1,0.60170527]
[1642396231197,0.03843947,3246.5,3246.2,0.00113684]
[1642396231395,0.00113685,3246.6,3246.2,0.00113684]
[1642396231995,0.08665614,3246.5,3246.2,0.00113684]
[1642396232194,0.00113685,3246.6,3246.2,0.00113684]
[1642396233948,0.00113685,3246.6,3246.3,0.00848788]
[1642396234353,0.00113685,3246.6,3246.2,0.00113684]
[1642396234550,0.00113685,3246.6,3246.3,0.00954622]
[1642396234752,0.00113685,3246.6,3246.2,0.00113684]
[1642396235252,0.07520353,3246.5,3246.2,0.00113684]
[1642396235451,0.00113685,3246.6,3246.2,0.00113684]
[1642396235651,0.05729489,3246.5,3246.2,0.00113684]
[1642396235851,0.00113685,3246.6,3246.2,0.00113684]
[1642396237603,0.08665614,3246.5,3246.2,0.00113684]
[1642396238003,0.00113685,3246.6,3246.2,0.00113684]
[1642396238604,0.4731212,3246.6,3246.2,0.00113684]
[1642396239005,0.05496193,3246.5,3246.2,0.00113684]
[1642396239513,0.4731212,3246.6,3246.2,0.00113684]
[1642396239705,0.03768736,3246.5,3246.2,0.00113684]
[1642396239906,0.4731212,3246.6,3246.2,0.00113684]
[1642396240305,0.08295187,3246.5,3246.2,0.00113684]
[1642396240505,0.4731212,3246.6,3246.3,0.01130177]
[1642396240905,0.4731212,3246.6,3246.2,0.00113684]
[1642396242560,0.4731212,3246.6,3246.2,17.98113684]
[1642396243260,0.0782538,3246.5,3246.2,17.98113684]
[1642396243661,0.0782538,3246.5,3246.2,0.00113684]
[1642396244062,0.4731212,3246.6,3246.2,0.00113684]
[1642396244261,0.08665614,3246.5,3246.2,0.00113684]
[1642396244666,0.4731212,3246.6,3246.2,0.00113684]
[1642396244900,0.4731212,3246.6,3246.3,0.01130177]
[1642396245100,0.4731212,3246.6,3246.2,0.00113684]
[1642396245302,0.08665614,3246.5,3246.2,0.00113684]
[1642396245601,0.4731212,3246.6,3246.3,0.01130177]
[1642396245802,0.4731212,3246.6,3246.2,0.00113684]
[1642396246501,0.4731212,3246.6,3246.3,0.01130177]
[1642396246702,0.08665614,3246.5,3246.2,0.00113684]
[1642396246902,0.4731212,3246.6,3246.3,0.01130177]
[1642396247102,0.4731212,3246.6,3246.2,0.00113684]
[1642396248657,0.4731212,3246.6,3246.2,17.98113684]
[1642396249253,0.4731212,3246.6,3246.2,0.00113684]
[1642396249652,0.4731212,3246.6,3246.0,0.00227369]
[1642396249855,0.4731212,3246.6,3246.0,17.98227369]
[1642396250252,0.4731212,3246.6,3246.1,0.0033715]
[1642396250452,0.4731212,3246.6,3246.0,17.98227369]
[1642396250652,0.08665614,3246.5,3246.2,0.00113684]
[1642396251053,0.4731212,3246.6,3246.3,0.00426188]
[1642396251252,0.4731212,3246.6,3246.0,17.98227369]
[1642396251853,0.4731212,3246.6,3246.2,17.99130177]
[1642396252053,0.4731212,3246.6,3246.2,17.98]
[1642396252508,4.94539489,3246.7,3246.3,10.55]
[1642396252705,4.43029489,3246.7,3246.3,10.55]
[1642396252908,0.08665614,3246.6,3246.4,0.00113685]
[1642396253305,0.08665614,3246.6,3246.3,0.00170527]
[1642396253706,4.43029489,3246.7,3246.3,0.00170527]
[1642396254307,4.43029489,3246.7,3246.4,0.01130177]
[1642396254507,4.43029489,3246.7,3246.3,0.00170527]
[1642396254906,0.08665614,3246.6,3246.3,0.00170527]
[1642396255508,4.43029489,3246.7,3246.3,0.00170527]
[1642396256009,0.08665614,3246.6,3246.3,0.00170527]
[1642396256457,4.43029489,3246.7,3246.4,0.01130177]
[1642396256656,0.07464376,3246.6,3246.3,0.00170527]
[1642396256855,4.43029489,3246.7,3246.3,0.00170527]
[1642396257255,0.07805029,3246.6,3246.3,0.00170527]
[1642396257661,4.43029489,3246.7,3246.3,0.00170527]
[1642396258060,0.08665614,3246.6,3246.3,0.00170527]
[1642396258257,0.08665614,3246.6,3245.9,0.00397896]
[1642396258457,4.43029489,3246.7,3245.9,0.00397896]
[1642396258858,4.43029489,3246.7,3245.9,6.5178296]
[1642396259059,4.43029489,3246.7,3246.1,17.98]
[1642396259257,4.43029489,3246.7,3246.2,0.01114783]
[1642396259456,4.87429489,3246.7,3246.2,0.00227369]
[1642396259661,0.08041465,3246.6,3246.3,0.00170527]
[1642396259905,4.87429489,3246.7,3246.2,0.00227369]
[1642396260310,4.43029489,3246.7,3246.0,17.98341054]
[1642396260506,0.08665614,3246.6,3246.1,0.00284212]
[1642396261106,0.07205829,3246.6,3246.1,0.00284212]
[1642396261309,4.43029489,3246.7,3246.1,0.00284212]
[1642396261705,4.43029489,3246.7,3246.2,0.00333322]
[1642396262206,4.43029489,3246.7,3246.3,0.00170527]
[1642396262406,0.08665614,3246.6,3246.3,0.00170527]
[1642396262608,0.08665614,3246.6,3246.1,0.00284212]
[1642396263109,7.43029489,3246.7,3246.1,0.00284212]
[1642396263307,7.43029489,3246.7,3246.2,0.01130177]
[1642396263508,0.08665614,3246.6,3246.1,0.00284212]
[1642396263754,0.08665614,3246.6,3246.3,0.00170527]
[1642396263958,0.08665614,3246.6,3246.1,0.00284212]
[1642396264160,7.43029489,3246.7,3246.2,0.01130177]
[1642396264356,7.43029489,3246.7,3246.1,0.00284212]
[1642396264557,0.08665614,3246.6,3246.3,0.00170527]
[1642396264754,0.08665614,3246.6,3246.1,0.00284212]
[1642396264755,0.0455081,3246.6,3246.1,0.00284212]
[1642396265459,7.43029489,3246.7,3246.2,0.01130177]
[1642396265657,7.43029489,3246.7,3246.1,0.00284212]
[1642396265855,7.43029489,3246.7,3246.3,0.00170527]
[1642396266055,7.43029489,3246.7,3246.1,0.00284212]
[1642396266255,0.08665614,3246.6,3246.1,0.00284212]
[1642396266455,7.43029489,3246.7,3246.1,0.00284212]
[1642396266857,7.43029489,3246.7,3246.2,17.98]
[1642396267056,7.43029489,3246.7,3246.2,18.28]
[1642396267255,0.05404845,3246.6,3246.3,0.00170527]
[1642396267509,7.43029489,3246.7,3246.3,0.00170527]
[1642396268116,0.05933903,3246.6,3246.3,0.30170527]
[1642396268314,7.43029489,3246.7,3246.3,0.3]
[1642396268508,7.43029489,3246.7,3246.4,0.00113685]
[1642396268509,0.08385117,3246.6,3246.4,0.00113685]
[1642396268709,7.43029489,3246.7,3246.4,0.00113685]
[1642396268909,0.08569604,3246.6,3246.2,0.00227369]
[1642396269112,7.43029489,3246.7,3246.1,0.00284212]
[1642396269113,0.0740404,3246.4,3246.1,0.00284212]
[1642396269311,0.444,3246.3,3245.9,0.00397896]
[1642396269509,0.444,3246.3,3245.7,0.00511581]
[1642396269510,4.87429489,3246.3,3245.7,0.00511581]
[1642396269710,6.29429489,3246.3,3245.7,0.00511581]
[1642396269911,6.29429489,3246.3,3245.6,0.00568423]
[1642396269912,0.1168,3246.2,3245.6,0.00568423]
[1642396270113,4.87429489,3246.1,3245.6,0.00568423]
[1642396270313,1.21458,3246.0,3245.6,0.00568423]
[1642396270513,4.43029489,3245.9,3245.6,0.00568423]
[1642396270715,1.21453,3245.8,3245.6,0.00568423]
[1642396270910,2.21453,3245.8,3245.6,0.00568423]
[1642396272867,0.56,3245.7,3245.6,0.00568423]
[1642396273067,0.444,3245.7,3245.6,0.00568423]
[1642396274168,0.444,3245.7,3245.6,25.15568423]
[1642396274567,4.43029489,3245.9,3245.6,25.15568423]
[1642396274772,4.43029489,3245.9,3245.7,0.00923953]
[1642396275011,4.43029489,3245.9,3245.7,0.00511581]
[1642396275206,4.43029489,3245.9,3245.8,32.82711513]
[1642396275404,3.17300841,3245.9,3245.8,32.82256774]
[1642396275607,3.17300841,3245.9,3245.8,32.82711513]
[1642396277704,3.17300841,3245.9,3245.8,24.57711513]
[1642396278106,3.17300841,3245.9,3245.8,23.25454739]
[1642396278411,3.17300841,3245.9,3245.8,0.00454739]
[1642396278855,3.17300841,3245.9,3245.6,0.00568423]
[1642396279058,0.444,3245.8,3245.6,0.00568423]
[1642396280257,0.4907209,3245.8,3245.6,0.00568423]
[1642396280458,0.444,3245.8,3245.6,0.00568423]
[1642396283109,3.444,3245.8,3245.6,0.00568423]
[1642396284413,3.444,3245.8,3245.6,0.016986]
[1642396284610,3.444,3245.8,3245.6,0.00568423]
[1642396284810,3.444,3245.8,3245.7,14.70511581]
[1642396285011,3.444,3245.8,3245.7,14.7]
[1642396285210,3.444,3245.8,3245.7,14.70511581]
[1642396285809,3.444,3245.8,3245.7,0.00511581]
[1642396286010,3.444,3245.8,3245.7,6.95511581]
[1642396286262,3.444,3245.8,3245.7,6.95]
[1642396286457,3.444,3245.8,3245.7,6.95511581]
[1642396287064,3.444,3245.8,3245.7,14.30511581]
[1642396288262,3.444,3245.8,3245.7,6.95511581]